bitfinex/quotes_SOLUSD_20230703
["timestamp","ask_amount","ask_price","bid_price","bid_amount"]
[1688392265541,22.014,19.215,19.206,22.023]
[1688392268331,97.7312,19.221,19.206,22.023]
[1688392268520,77.008,19.22,19.206,22.023]
[1688392273231,22.008,19.22,19.206,22.023]
[1688392273436,22.008,19.22,19.207,55.0]
[1688392273736,22.008,19.22,19.202,103.475]
[1688392274033,22.008,19.22,19.206,22.023]
[1688392274620,78.687,19.216,19.206,22.023]
[1688392274826,22.017,19.213,19.206,22.023]
[1688392275032,22.017,19.213,19.203,50.0]
[1688392275231,55.0,19.219,19.201,22.029]
[1688392275232,78.711,19.21,19.201,22.029]
[1688392275434,78.711,19.21,19.195,56.733]
[1688392275636,103.43,19.211,19.198,22.032]
[1688392275637,22.025,19.206,19.198,22.032]
[1688392280039,55.0,19.209,19.198,22.032]
[1688392280245,22.023,19.207,19.198,22.032]
[1688392281236,55.0,19.21,19.198,125.532]
[1688392281635,22.023,19.207,19.198,125.532]
[1688392281836,22.023,19.207,19.198,22.032]
[1688392286046,22.023,19.207,19.194,25.55571043]
[1688392286235,22.023,19.207,19.18,161.91]
[1688392286236,55.0,19.206,19.18,161.91]
[1688392286552,78.749,19.2,19.188,56.753]
[1688392286935,22.036,19.196,19.19,22.041]
[1688392287331,22.036,19.196,19.187,30.0]
[1688392287530,95.4367,19.2,19.187,30.0]
[1688392287531,182.308,19.193,19.187,30.0]
[1688392288247,78.779,19.193,19.187,30.0]
[1688392288547,78.779,19.193,19.179,51.86]
[1688392288746,22.039,19.193,19.186,22.046]
[1688392288933,103.497,19.199,19.186,22.046]
[1688392289134,95.4367,19.2,19.186,22.046]
[1688392289462,22.034,19.198,19.186,22.046]
[1688392289650,55.0,19.199,19.186,22.046]
[1688392290161,22.033,19.198,19.186,22.046]
[1688392290353,78.757,19.198,19.186,22.046]
[1688392290832,22.038,19.194,19.186,22.046]
[1688392291039,22.038,19.194,19.185,22.048]
[1688392294039,22.042,19.191,19.185,22.048]
[1688392296335,22.042,19.191,19.18,30.0]
[1688392296537,55.0,19.19,19.181,20.0]
[1688392296740,56.736,19.194,19.185,22.048]
[1688392296942,55.0,19.193,19.185,22.048]
[1688392297849,78.79,19.19,19.175,56.791]
[1688392298035,78.79,19.19,19.17,84.38]
[1688392298036,55.0,19.189,19.177,30.0]
[1688392298241,146.6499,19.189,19.177,30.0]
[1688392298543,146.6499,19.189,19.172,22.063]
[1688392298544,182.377,19.186,19.172,22.063]
[1688392298752,182.377,19.186,19.169,56.809]
[1688392299050,182.421,19.181,19.171,30.0]
[1688392299253,55.0,19.18,19.171,22.064]
[1688392299458,56.779,19.18,19.171,22.064]
[1688392299639,22.057,19.178,19.171,22.064]
[1688392299841,103.579,19.184,19.171,125.71]
[1688392299842,22.051,19.183,19.171,125.71]
[1688392300463,22.051,19.183,19.171,22.064]
[1688392301150,22.051,19.183,19.175,22.059]
[1688392302950,55.0,19.182,19.174,22.06]
[1688392303151,22.054,19.18,19.173,22.062]
[1688392304346,125.651,19.18,19.165,103.676]
[1688392304547,125.651,19.18,19.17,22.064]
[1688392305155,78.85,19.176,19.166,30.0]
[1688392305354,78.862,19.173,19.166,30.0]
[1688392305655,78.862,19.173,19.162,56.83]
[1688392305855,22.063,19.173,19.165,22.07]
[1688392306051,55.0,19.179,19.165,22.07]
[1688392306358,22.06,19.175,19.165,22.07]
[1688392308642,22.06,19.175,19.168,22.067]
[1688392309439,22.06,19.175,19.167,22.068]
[1688392311974,22.06,19.175,19.167,78.884]
[1688392312847,22.06,19.175,19.167,22.068]
[1688392315057,103.617,19.177,19.167,22.068]
[1688392315058,56.783,19.179,19.167,22.068]
[1688392315259,22.059,19.176,19.167,22.068]
[1688392317841,22.059,19.176,19.166,22.069]
[1688392318067,55.0,19.175,19.166,22.069]
[1688392318361,78.863,19.173,19.164,30.0]
[1688392318561,78.877,19.169,19.162,22.074]
[1688392318743,78.877,19.169,19.163,42.073]
[1688392318949,22.066,19.17,19.163,98.901]
[1688392319552,56.799,19.173,19.163,98.901]
[1688392320246,56.799,19.173,19.164,30.0]
[1688392320447,92.6942,19.176,19.164,30.0]
[1688392320448,22.065,19.171,19.166,22.069]
[1688392320863,22.064,19.171,19.166,22.069]
[1688392321057,22.064,19.171,19.165,22.07]
[1688392322861,22.064,19.171,19.164,30.0]
[1688392322862,78.868,19.171,19.164,30.0]
[1688392323069,22.064,19.171,19.164,30.0]
[1688392323362,22.064,19.171,19.157,77.50005222]
[1688392323667,22.064,19.171,19.161,50.0]
[1688392324566,22.068,19.168,19.163,22.073]
[1688392324770,22.068,19.168,19.161,50.0]
[1688392324948,22.068,19.168,19.161,30.0]
[1688392325149,182.595,19.163,19.15,32.52]
[1688392325352,182.595,19.163,19.152,30.0]
[1688392325562,22.078,19.16,19.153,42.085]
[1688392326572,22.074,19.163,19.153,145.828]
[1688392326754,56.815,19.168,19.153,145.828]
[1688392326950,55.0,19.167,19.153,145.828]
[1688392327278,22.074,19.163,19.153,145.828]
[1688392328050,22.074,19.163,19.153,42.085]
[1688392328357,22.078,19.16,19.153,42.085]
[1688392329066,56.827,19.164,19.153,42.085]
[1688392329067,22.077,19.161,19.153,42.085]
[1688392330061,56.827,19.164,19.153,42.085]
[1688392330253,77.074,19.163,19.153,42.085]
[1688392332767,22.074,19.163,19.153,42.085]
[1688392333264,22.074,19.163,19.153,98.942]
[1688392333450,22.074,19.163,19.153,42.085]
[1688392334251,78.902,19.163,19.153,42.085]
[1688392335675,55.0,19.162,19.153,42.085]
[1688392335966,22.078,19.16,19.151,22.087]
[1688392336170,55.0,19.159,19.151,22.087]
[1688392336372,22.081,19.157,19.151,22.087]
[1688392336561,22.081,19.157,19.15,22.087]
[1688392338463,22.081,19.157,19.149,22.088]
[1688392338758,22.081,19.157,19.148,22.09]
[1688392339084,55.0,19.156,19.147,30.0]
[1688392339253,182.682,19.154,19.147,30.0]
[1688392339453,182.682,19.154,19.137,56.903]
[1688392339673,146.3041,19.153,19.141,22.098]
[1688392339870,22.089,19.15,19.141,22.098]
[1688392340768,148.1441,19.159,19.141,22.098]
[1688392340973,91.3041,19.159,19.141,22.098]
[1688392341276,22.08,19.158,19.141,73.958]
[1688392341572,22.08,19.158,19.146,182.745]
[1688392341758,56.829,19.163,19.146,182.745]
[1688392342173,22.079,19.159,19.146,182.745]
[1688392343673,22.083,19.155,19.146,182.745]
[1688392346662,91.3041,19.164,19.146,182.745]
[1688392346861,22.077,19.161,19.151,182.703]
[1688392347062,78.21744593,19.17,19.151,182.703]
[1688392347063,151.1115,19.169,19.151,182.703]
[1688392347371,151.1115,19.169,19.15,32.11]
[1688392347372,151.1115,19.169,19.155,78.93]
[1688392348277,22.072,19.165,19.155,78.93]
[1688392349663,22.072,19.165,19.15,56.864]
[1688392349867,20.0,19.164,19.147,22.091]
[1688392350165,182.629,19.159,19.142,42.096]
[1688392350476,55.0,19.158,19.142,42.096]
[1688392350669,182.684,19.154,19.142,22.096]
[1688392350871,78.952,19.151,19.144,30.0]
[1688392351075,78.952,19.151,19.144,22.095]
[1688392351868,182.706,19.151,19.143,20.0]
[1688392352070,55.0,19.15,19.135,71.86]
[1688392352382,55.0,19.15,19.143,22.096]
[1688392352383,22.093,19.146,19.143,22.096]
[1688392352581,95.3727,19.157,19.143,22.096]
[1688392352777,56.851,19.156,19.143,78.983]
[1688392353683,22.086,19.153,19.147,22.091]
[1688392354684,22.085,19.154,19.147,22.091]
[1688392355074,22.081,19.157,19.147,22.091]
[1688392355959,96.5261,19.163,19.147,22.091]
[1688392356183,76.835,19.162,19.147,22.091]
[1688392356381,20.0,19.162,19.147,22.091]
[1688392356879,77.077,19.161,19.147,22.091]
[1688392358464,77.077,19.161,19.148,55.0]
[1688392358669,77.077,19.161,19.151,22.086]
[1688392358866,22.077,19.161,19.152,20.0]
[1688392359069,96.5261,19.163,19.152,20.0]
[1688392359070,22.075,19.162,19.155,22.082]
[1688392361586,22.074,19.163,19.155,22.082]
[1688392361972,56.816,19.167,19.155,22.082]
[1688392362173,55.0,19.166,19.155,22.082]
[1688392363386,22.073,19.163,19.155,22.082]
[1688392365888,56.816,19.167,19.155,22.082]
[1688392365889,93.4449,19.169,19.155,22.082]
[1688392366079,55.0,19.168,19.155,22.082]
[1688392367388,55.0,19.168,19.154,22.083]
[1688392367389,22.073,19.164,19.154,22.083]
[1688392367580,22.076,19.161,19.154,22.083]
[1688392367782,22.076,19.161,19.15,56.866]
[1688392368089,22.08,19.158,19.153,22.084]
[1688392370096,22.079,19.159,19.153,22.084]
[1688392372789,22.078,19.16,19.153,22.084]
[1688392374276,22.076,19.161,19.153,22.084]
[1688392374591,56.815,19.168,19.153,22.084]
[1688392375589,22.072,19.165,19.153,22.084]
[1688392376693,55.0,19.164,19.153,22.084]
[1688392376997,22.076,19.161,19.153,22.084]
[1688392377489,55.0,19.164,19.153,22.084]
[1688392377693,22.076,19.161,19.153,22.084]
[1688392378079,22.075,19.162,19.153,22.084]
[1688392378280,77.076,19.161,19.153,22.084]
[1688392378481,78.91,19.161,19.153,22.084]
[1688392378698,22.076,19.161,19.153,22.084]
[1688392378881,55.0,19.16,19.153,22.084]
[1688392379081,22.079,19.158,19.153,22.085]
[1688392379280,55.0,19.157,19.153,22.085]
[1688392379985,77.081,19.157,19.152,22.085]
[1688392380296,22.081,19.157,19.152,22.085]
[1688392383695,22.081,19.157,19.15,56.865]
[1688392383696,55.0,19.156,19.15,22.088]
[1688392383896,22.083,19.155,19.148,22.09]
[1688392385704,22.077,19.16,19.148,22.09]
[1688392385994,98.5655,19.161,19.149,55.0]
[1688392386306,22.077,19.16,19.152,22.085]
[1688392387398,22.077,19.16,19.147,56.874]
[1688392388003,55.0,19.159,19.147,56.874]
[1688392388193,22.082,19.156,19.15,22.087]
[1688392389094,22.082,19.156,19.145,56.881]
[1688392389290,160.572,19.157,19.148,22.09]
[1688392389291,22.085,19.153,19.148,22.09]
[1688392389997,22.085,19.153,19.148,21.09]
[1688392391993,22.084,19.154,19.148,21.09]
[1688392392701,111.841,19.159,19.148,21.09]
[1688392392895,55.0,19.159,19.148,21.09]
[1688392393101,55.0,19.16,19.148,21.09]
[1688392393406,98.5655,19.161,19.148,21.09]
[1688392393904,22.08,19.158,19.148,21.09]
[1688392396014,55.0,19.157,19.148,21.09]
[1688392396311,22.083,19.155,19.148,21.09]
[1688392397413,20.0,19.154,19.13,32.45]
[1688392397710,22.091,19.148,19.138,22.101]
[1688392398595,22.091,19.148,19.141,22.098]
[1688392399502,22.091,19.149,19.141,22.098]
[1688392400110,78.96,19.149,19.141,22.098]
[1688392400692,78.96,19.149,19.134,103.841]
[1688392400896,78.96,19.149,19.136,30.0]
[1688392401306,78.96,19.149,19.139,22.1]
[1688392401498,22.094,19.146,19.139,22.1]
[1688392402024,22.094,19.146,19.138,22.101]
[1688392402195,22.094,19.146,19.139,22.101]
[1688392402603,56.865,19.151,19.139,22.101]
[1688392402905,22.092,19.148,19.139,22.101]
[1688392403815,78.964,19.148,19.136,30.0]
[1688392404110,55.0,19.147,19.134,30.0]
[1688392404315,22.096,19.144,19.136,22.104]
[1688392404509,55.0,19.143,19.136,22.104]
[1688392406119,22.096,19.144,19.136,22.104]
[1688392406497,22.095,19.145,19.136,22.104]
[1688392406816,32.29,19.15,19.136,22.104]
[1688392407108,64.61,19.16,19.136,22.104]
[1688392407322,22.087,19.152,19.142,78.987]
[1688392407512,22.087,19.152,19.145,22.093]
[1688392407697,22.087,19.152,19.144,22.095]
[1688392407897,22.087,19.152,19.14,56.896]
[1688392408097,22.087,19.152,19.143,22.096]
[1688392408394,22.087,19.152,19.141,22.098]
[1688392408594,22.087,19.152,19.142,22.097]
[1688392409610,22.091,19.148,19.141,22.098]
[1688392409798,22.094,19.146,19.141,22.098]
[1688392410198,78.972,19.146,19.134,56.912]
[1688392410399,55.0,19.145,19.136,22.103]
[1688392410800,77.095,19.145,19.136,22.103]
[1688392411607,77.095,19.145,19.12,32.25]
[1688392411820,22.103,19.138,19.13,22.111]
[1688392412008,22.102,19.139,19.13,22.111]
[1688392412512,22.104,19.137,19.13,22.111]
[1688392412703,55.0,19.136,19.13,22.111]
[1688392413104,22.104,19.137,19.13,22.111]
[1688392413420,56.891,19.142,19.13,22.111]
[1688392413624,22.102,19.139,19.13,22.111]
[1688392413804,55.0,19.138,19.13,22.111]
[1688392414006,77.103,19.138,19.13,22.111]
[1688392414223,22.103,19.138,19.13,22.111]
[1688392414721,22.103,19.138,19.124,56.941]
[1688392415020,55.0,19.137,19.128,22.113]
[1688392415223,22.106,19.135,19.128,22.113]
[1688392415415,22.106,19.135,19.125,30.0]
[1688392415622,55.0,19.134,19.125,52.116]
[1688392415923,55.0,19.137,19.125,52.116]
[1688392416226,22.106,19.136,19.125,52.116]
[1688392416413,55.0,19.135,19.125,52.116]
[1688392416622,55.0,19.138,19.125,52.116]
[1688392417308,91.0142,19.139,19.125,52.116]
[1688392417514,22.102,19.139,19.125,52.116]
[1688392418611,55.0,19.138,19.125,52.116]
[1688392419007,77.102,19.138,19.125,52.116]
[1688392419215,155.7314,19.143,19.125,52.116]
[1688392419409,22.102,19.139,19.125,52.116]
[1688392419609,20.0,19.142,19.125,52.116]
[1688392419825,22.1,19.141,19.125,52.116]
[1688392420032,20.0,19.142,19.126,55.0]
[1688392420328,42.098,19.142,19.13,79.033]
[1688392420806,20.0,19.142,19.13,79.033]
[1688392421613,98.8384,19.143,19.13,79.033]
[1688392421809,22.095,19.145,19.13,79.033]
[1688392422005,92.0922,19.151,19.136,79.01]
[1688392422233,123.744,19.153,19.136,79.01]
[1688392422727,22.091,19.148,19.136,79.01]
[1688392423514,78.963,19.148,19.136,22.104]
[1688392424430,22.091,19.148,19.136,22.104]
[1688392424628,22.091,19.148,19.136,79.012]
[1688392424925,22.096,19.144,19.136,22.104]
[1688392425124,22.098,19.142,19.136,22.104]
[1688392425421,22.097,19.143,19.136,22.104]
[1688392427330,55.0,19.142,19.136,22.104]
[1688392427528,22.1,19.141,19.136,22.104]
[1688392427827,55.0,19.142,19.136,22.104]
[1688392428025,55.0,19.142,19.136,79.012]
[1688392428225,55.0,19.143,19.136,79.012]
[1688392429540,77.096,19.143,19.136,79.012]
[1688392429912,77.096,19.143,19.136,22.104]
[1688392430118,22.096,19.144,19.136,22.104]
[1688392430434,22.097,19.143,19.136,22.104]
[1688392430636,77.097,19.143,19.136,22.104]
[1688392431528,22.1,19.141,19.136,22.104]
[1688392433727,20.0,19.142,19.136,22.104]
[1688392434428,42.098,19.142,19.136,22.104]
[1688392434731,58.45051486,19.15,19.136,22.104]
[1688392434923,78.959,19.149,19.136,22.104]
[1688392436348,78.959,19.149,19.135,22.105]
[1688392436641,78.959,19.149,19.131,56.922]
[1688392436819,22.095,19.144,19.134,22.106]
[1688392437133,125.907,19.141,19.121,26.56395045]
[1688392437333,125.907,19.141,19.133,22.107]
[1688392437334,22.099,19.141,19.133,22.107]
[1688392437535,55.0,19.14,19.133,22.107]
[1688392437722,22.102,19.138,19.133,22.107]
[1688392437924,22.101,19.139,19.133,22.107]
[1688392438135,55.0,19.14,19.133,22.107]
[1688392438522,22.101,19.139,19.133,22.107]
[1688392439428,77.101,19.14,19.133,22.107]
[1688392439623,55.0,19.14,19.133,22.107]
[1688392439831,77.099,19.141,19.133,22.107]
[1688392440421,22.099,19.141,19.133,22.107]
[1688392440739,22.098,19.142,19.133,22.107]
[1688392440943,20.0,19.141,19.133,22.107]
[1688392441154,42.099,19.141,19.129,22.111]
[1688392441443,98.992,19.141,19.132,22.109]
[1688392441941,22.103,19.138,19.132,22.109]
[1688392442137,22.105,19.136,19.132,22.109]
[1688392442325,111.898,19.14,19.132,22.109]
[1688392442326,20.0,19.141,19.132,22.109]
[1688392442532,20.0,19.141,19.132,125.966]
[1688392442742,42.099,19.141,19.132,125.966]
[1688392442937,20.0,19.141,19.132,125.966]
[1688392443442,20.0,19.147,19.132,125.966]
[1688392443646,104.588418,19.148,19.132,125.966]
[1688392443823,22.095,19.144,19.132,125.966]
[1688392444023,78.979,19.144,19.132,22.109]
[1688392445040,182.813,19.14,19.131,22.109]
[1688392445339,22.105,19.136,19.131,22.11]
[1688392447544,95.501,19.142,19.131,22.11]
[1688392447735,75.0,19.141,19.131,22.11]
[1688392447938,22.1,19.14,19.131,22.11]
[1688392448237,134.5120699,19.15,19.131,22.11]
[1688392448443,22.093,19.147,19.137,182.837]
[1688392449638,22.093,19.147,19.137,22.103]
[1688392449847,55.0,19.146,19.137,22.103]
[1688392450144,22.096,19.144,19.137,22.103]
[1688392450351,55.0,19.143,19.137,22.103]
[1688392451647,77.097,19.143,19.137,22.103]
[1688392452738,77.097,19.143,19.13,32.51]
[1688392452739,77.097,19.143,19.132,56.918]
[1688392452938,22.101,19.14,19.137,22.103]
[1688392453141,56.871,19.149,19.135,22.106]
[1688392453345,22.094,19.146,19.135,22.106]
[1688392454335,55.0,19.145,19.135,22.106]
[1688392454635,77.095,19.145,19.135,22.106]
[1688392456050,77.095,19.145,19.135,22.105]
[1688392456454,77.095,19.145,19.129,56.927]
[1688392456759,115.7248,19.144,19.129,56.927]
[1688392456950,78.997,19.14,19.132,22.108]
[1688392457442,55.0,19.139,19.132,22.108]
[1688392457648,22.103,19.137,19.132,22.108]
[1688392457851,55.0,19.136,19.131,22.11]
[1688392458149,22.106,19.135,19.13,22.11]
[1688392458342,77.107,19.134,19.13,22.11]
[1688392458536,22.107,19.134,19.13,22.11]
[1688392458940,22.106,19.135,19.13,22.11]
[1688392459135,55.0,19.134,19.13,22.11]
[1688392459334,77.106,19.136,19.13,22.11]
[1688392460133,55.0,19.136,19.13,22.11]
[1688392460536,55.0,19.137,19.13,22.11]
[1688392460956,77.104,19.137,19.13,22.11]
[1688392461138,55.0,19.137,19.13,22.11]
[1688392461556,77.103,19.137,19.13,22.11]
[1688392461940,55.0,19.137,19.13,22.11]
[1688392462141,22.102,19.139,19.13,22.11]
[1688392463241,115.7248,19.144,19.12,84.36]
[1688392463443,115.7248,19.144,19.13,22.11]
[1688392463444,22.102,19.139,19.13,22.11]
[1688392463953,22.102,19.139,19.129,22.112]
[1688392463954,79.001,19.139,19.129,22.112]
[1688392464156,79.013,19.136,19.129,22.112]
[1688392464455,22.108,19.134,19.129,22.112]
[1688392465066,55.0,19.133,19.129,22.112]
[1688392465258,22.105,19.136,19.129,22.112]
[1688392465556,56.897,19.14,19.129,22.112]
[1688392465735,103.806,19.142,19.129,22.112]
[1688392465736,22.103,19.138,19.129,22.112]
[1688392467743,55.0,19.137,19.129,22.112]
[1688392467955,22.105,19.136,19.129,22.112]
[1688392468358,77.104,19.137,19.129,22.112]
[1688392469759,55.0,19.137,19.129,22.112]
[1688392470264,160.671,19.145,19.129,22.112]
[1688392470563,22.1,19.14,19.129,22.112]
[1688392472063,55.0,19.139,19.129,22.112]
[1688392472361,22.104,19.137,19.129,22.112]
[1688392473946,55.0,19.136,19.129,22.112]
[1688392474157,22.107,19.134,19.129,22.112]
[1688392474653,55.0,19.136,19.129,22.112]
[1688392474849,77.105,19.136,19.129,22.112]
[1688392475545,22.105,19.136,19.129,22.112]
[1688392475740,22.102,19.138,19.129,22.112]
[1688392477044,55.0,19.137,19.129,22.112]
[1688392477253,22.106,19.135,19.129,22.112]
[1688392477561,55.0,19.137,19.129,22.112]
[1688392477758,20.0,19.142,19.129,22.112]
[1688392477942,22.103,19.138,19.129,22.112]
[1688392479053,77.104,19.137,19.129,22.112]
[1688392480650,55.0,19.137,19.129,22.112]
[1688392480860,77.103,19.137,19.129,22.112]
[1688392481863,55.0,19.137,19.129,22.112]
[1688392482646,77.103,19.137,19.129,22.112]
[1688392482841,76.891,19.142,19.129,22.112]
[1688392483047,64.94,19.16,19.13,32.51]
[1688392483351,64.94,19.16,19.136,182.841]
[1688392483352,56.868,19.15,19.136,182.841]
[1688392484165,22.093,19.147,19.136,182.841]
[1688392484362,22.093,19.147,19.131,30.0]
[1688392484552,55.0,19.146,19.132,22.108]
[1688392484749,78.989,19.142,19.132,22.108]
[1688392484952,75.0,19.141,19.132,22.108]
[1688392485151,22.102,19.139,19.132,22.108]
[1688392485456,55.0,19.138,19.132,22.108]
[1688392485766,22.104,19.137,19.132,22.108]
[1688392486349,55.0,19.136,19.132,22.108]
[1688392486554,22.106,19.135,19.132,22.108]
[1688392486748,56.901,19.139,19.132,22.108]
[1688392486959,22.105,19.136,19.132,22.108]
[1688392487360,22.105,19.136,19.131,22.109]
[1688392488950,103.812,19.141,19.131,22.109]
[1688392488951,25.91401735,19.153,19.131,22.109]
[1688392489154,22.103,19.138,19.131,22.109]
[1688392489351,55.0,19.137,19.131,22.109]
[1688392490064,77.104,19.137,19.131,22.109]
[1688392490566,77.104,19.137,19.121,51.86]
[1688392490766,77.104,19.137,19.123,30.0]
[1688392491354,77.104,19.137,19.128,22.113]
[1688392491563,169.494,19.137,19.128,22.113]
[1688392494854,77.104,19.137,19.128,22.113]
[1688392495061,20.0,19.136,19.127,22.115]
[1688392495372,20.0,19.136,19.122,160.858]
[1688392495373,79.024,19.134,19.125,22.116]
[1688392495562,55.0,19.133,19.125,22.116]
[1688392495764,22.111,19.131,19.125,22.116]
[1688392495971,55.0,19.13,19.125,22.116]
[1688392496269,22.113,19.129,19.125,22.116]
[1688392496463,22.115,19.127,19.116,103.942]
[1688392496664,77.114,19.128,19.118,133.928]
[1688392497070,55.0,19.128,19.125,22.117]
[1688392497265,77.114,19.128,19.124,22.117]
[1688392498184,22.112,19.13,19.124,22.117]
[1688392501390,22.112,19.13,19.124,22.118]
[1688392501565,55.0,19.129,19.124,22.118]
[1688392501765,22.114,19.128,19.124,22.118]
[1688392503579,56.917,19.133,19.124,22.118]
[1688392503776,22.111,19.131,19.124,22.118]
[1688392503980,55.0,19.13,19.118,133.932]
[1688392504184,55.0,19.13,19.124,22.117]
[1688392504185,22.114,19.128,19.124,22.117]
[1688392504384,55.0,19.127,19.124,22.117]
[1688392505379,77.115,19.127,19.123,22.118]
[1688392505574,77.115,19.127,19.122,22.119]
[1688392505770,77.115,19.127,19.118,30.0]
[1688392506272,180.999,19.127,19.118,30.0]
[1688392506474,20.0,19.126,19.109,22.135]
[1688392506674,182.992,19.121,19.11,22.134]
[1688392506878,55.0,19.12,19.11,22.134]
[1688392507084,22.126,19.117,19.11,22.134]
[1688392507270,79.091,19.117,19.103,30.0]
[1688392507480,22.126,19.117,19.11,22.134]
[1688392507685,55.0,19.116,19.11,22.134]
[1688392507893,22.13,19.115,19.11,22.134]
[1688392508367,22.126,19.118,19.11,22.134]
[1688392508568,22.129,19.116,19.11,22.134]
[1688392509485,55.0,19.115,19.109,22.135]
[1688392509685,22.131,19.114,19.109,22.135]
[1688392510375,22.131,19.114,19.106,22.139]
[1688392510972,22.129,19.115,19.106,22.139]
[1688392511488,22.129,19.116,19.106,22.139]
[1688392511692,55.0,19.115,19.106,22.139]
[1688392511885,22.129,19.116,19.106,22.139]
[1688392512676,22.127,19.117,19.106,22.139]
[1688392513478,55.0,19.116,19.106,22.139]
[1688392513676,22.13,19.115,19.105,22.14]
[1688392513876,55.0,19.114,19.105,22.14]
[1688392514078,22.13,19.115,19.105,22.14]
[1688392514486,56.961,19.119,19.105,22.14]
[1688392514687,22.129,19.115,19.105,22.14]
[1688392515587,55.0,19.114,19.105,22.14]
[1688392515791,77.131,19.114,19.105,22.14]
[1688392516790,22.131,19.114,19.105,22.14]
[1688392518595,22.127,19.117,19.105,22.14]
[1688392520082,22.129,19.115,19.105,22.14]
[1688392521403,55.0,19.114,19.104,22.141]
[1688392521606,55.0,19.114,19.094,104.061]
[1688392521607,126.104,19.111,19.094,104.061]
[1688392521789,126.104,19.111,19.098,22.148]
[1688392522109,77.135,19.11,19.098,22.148]
[1688392522297,55.0,19.11,19.098,22.148]
[1688392522502,22.135,19.11,19.098,22.148]
[1688392522692,55.0,19.111,19.098,22.148]
[1688392522693,22.139,19.106,19.098,22.148]